bitfinex-derivatives/quotes_SOLF0:USTF0_20250127
["timestamp","ask_amount","ask_price","bid_price","bid_amount"]
[1737961358538,0.03102845,227.55,227.5,0.02903052]
[1737961359248,0.03102845,227.55,227.51,35.5264605]
[1737961359446,35.5264605,227.76,227.51,35.5264605]
[1737961359648,82.32,227.99,227.5,0.02903052]
[1737961359649,11.3098,227.78,227.56,35.5264605]
[1737961359855,11.3098,227.78,227.56,39.5264605]
[1737961360151,11.3098,227.78,227.66,4.3948]
[1737961360347,11.3098,227.78,227.66,35.5264605]
[1737961360544,8.5039,227.78,227.66,35.5264605]
[1737961360745,2.8777,227.78,227.66,35.5264605]
[1737961360946,2.8059,227.86,227.66,35.5264605]
[1737961360947,0.03319281,227.74,227.7,0.02816502]
[1737961361345,0.03319281,227.74,227.72,4.3936]
[1737961361644,11.3098,227.86,227.71,35.5264605]
[1737961361845,11.3098,227.96,227.76,35.5264605]
[1737961362251,0.02986544,227.81,227.76,35.5264605]
[1737961362747,11.3098,227.96,227.76,35.5264605]
[1737961362948,11.3098,227.96,227.76,35.554667]
[1737961363151,0.03102213,227.81,227.76,35.554667]
[1737961363350,11.3098,227.96,227.76,35.5264605]
[1737961363754,0.03209461,227.81,227.76,35.554387]
[1737961364055,0.03209461,227.81,227.76,0.0279265]
[1737961364255,11.3098,227.96,227.71,35.5264605]
[1737961364753,0.03251714,227.81,227.76,0.03073253]
[1737961365256,11.3098,227.96,227.71,35.5264605]
[1737961365553,0.03337723,227.81,227.76,0.03165292]
[1737961365750,0.03337723,227.81,227.76,35.5264605]
[1737961365944,11.3098,227.96,227.76,35.5264605]
[1737961366350,0.02828959,227.81,227.77,4.3927]
[1737961366545,0.02828959,227.81,227.76,35.55430583]
[1737961366745,11.3098,227.96,227.76,35.5264605]
[1737961366946,4.3907,227.88,227.76,39.9192605]
[1737961367149,11.3098,227.96,227.81,35.5264605]
[1737961367549,11.3098,227.96,227.81,39.9182605]
[1737961367550,0.03095422,227.84,227.81,39.9182605]
[1737961367754,11.3098,227.96,227.81,35.5264605]
[1737961368058,4.3897,227.93,227.86,0.03218709]
[1737961368259,11.3098,227.96,227.81,35.5264605]
[1737961368452,0.03347681,227.91,227.87,0.02798863]
[1737961369056,2.60989801,228.02,227.87,0.02798863]
[1737961369257,4.3896,227.94,227.87,0.02798863]
[1737961369454,2.60989801,228.02,227.81,35.5264605]
[1737961369653,4.3894,227.95,227.76,35.5264605]
[1737961369862,2.60989801,228.02,227.76,35.5264605]
[1737961370056,35.5264605,227.98,227.77,4.3928]
[1737961370559,0.02891102,227.91,227.87,0.03158843]
[1737961370759,0.02891102,227.91,227.77,4.3928]
[1737961370957,4.3909,227.87,227.78,4.3926]
[1737961371659,35.5264605,227.98,227.76,35.5264605]
[1737961371860,35.5264605,227.98,227.8,4.3921]
[1737961372062,0.03243844,227.85,227.8,0.02843626]
[1737961372559,0.02981506,227.85,227.81,35.5264605]
[1737961372960,0.02981506,227.85,227.84,4.3914]
[1737961374460,0.02981506,227.85,227.83,4.3916]
[1737961375054,0.02981506,227.85,227.81,35.5264605]
[1737961375259,0.02981506,227.85,227.84,4.3914]
[1737961376360,0.02981506,227.85,227.8,0.02783189]
[1737961376670,0.02981506,227.85,227.81,35.5264605]
[1737961376866,0.02981506,227.85,227.84,4.3914]
[1737961379765,2.8035,228.01,227.81,35.5264605]
[1737961379965,2.8035,228.01,227.89,35.5264605]
[1737961381071,0.0293138,227.97,227.93,0.03286171]
[1737961381467,0.0293138,227.97,227.94,35.5264605]
[1737961381769,0.0293138,227.97,227.93,0.03286171]
[1737961382272,4.3895,227.94,227.75,86.16]
[1737961382467,10.9385,227.96,227.81,35.5264605]
[1737961382869,4.3898,227.93,227.81,35.5264605]
[1737961383370,4.3898,227.93,227.82,4.3916]
[1737961383564,0.02780911,227.89,227.85,0.0287849]
[1737961386477,4.3913,227.85,227.76,35.5264605]
[1737961386671,0.02780911,227.89,227.76,35.5264605]
[1737961386873,10.9385,227.96,227.75,82.18]
[1737961387576,4.36721498,227.85,227.75,82.18]
[1737961387773,4.36721498,227.85,227.83,0.02896802]
[1737961387973,35.5264605,227.93,227.74,177.93131614]
[1737961388276,5.7173,227.84,227.71,177.93131614]
[1737961388471,2.8186,227.83,227.71,177.93131614]
[1737961389477,4.3929,227.77,227.71,177.93131614]
[1737961389770,4.3929,227.77,227.75,0.02906716]
[1737961389970,0.0328053,227.79,227.75,0.02906716]
[1737961391975,0.0328053,227.79,227.76,35.5264605]
[1737961392777,0.0328053,227.79,227.78,4.3926]
[1737961393177,5.66620243,227.9,227.76,35.5264605]
[1737961393879,4.391,227.86,227.77,4.3927]
[1737961394380,0.03139585,227.84,227.79,0.02788488]
[1737961395778,518.5264605,228.08,227.81,35.5264605]
[1737961395981,4.3881,228.02,227.86,35.5264605]
[1737961396278,2.7132,228.07,227.86,35.5264605]
[1737961396477,4.3882,228.01,227.88,4.3905]
[1737961396682,2.7132,228.07,227.88,4.3905]
[1737961396879,2.7132,228.07,227.92,0.02923661]
[1737961397183,2.7132,228.07,227.91,35.5264605]
[1737961397481,0.03054111,228.02,227.97,0.03251517]
[1737961397683,0.03054111,228.02,227.99,4.3885]
[1737961398082,0.03054111,228.02,227.97,0.03251517]
[1737961398979,0.03054111,228.02,227.97,4.42131517]
[1737961399185,0.03054111,228.02,227.97,0.03251517]
[1737961400184,0.03054111,228.02,227.98,4.3887]
[1737961400683,0.03054111,228.02,227.97,0.03251517]
[1737961403882,0.03054111,228.02,227.86,35.5264605]
[1737961404187,8.1111,228.07,227.86,35.5264605]
[1737961404892,4.3877,228.04,227.86,35.5264605]
[1737961405087,0.03083626,227.99,227.94,0.02810815]
[1737961405692,0.03083626,227.99,227.94,4.41760815]
[1737961405884,0.03083626,227.99,227.94,0.02810815]
[1737961406293,4.389,227.97,227.94,0.02810815]
[1737961407293,4.3887,227.98,227.94,0.02810815]
[1737961407791,4.3895,227.94,227.82,2.7616]
[1737961407993,35.5264605,228.04,227.81,82.18]
[1737961408193,226.5264605,228.04,227.81,82.18]
[1737961408392,4.3893,227.95,227.81,117.7064605]
[1737961408788,226.5264605,228.04,227.81,117.7064605]
[1737961408995,0.03366303,227.9,227.86,0.03346193]
[1737961409190,8.1939,228.03,227.86,0.03346193]
[1737961409397,0.03234312,227.9,227.83,4.3915]
[1737961409693,4.3898,227.93,227.92,0.03281723]
[1737961409897,0.03161404,227.89,227.78,3.98]
[1737961410089,0.03161404,227.89,227.76,35.5264605]
[1737961410288,8.1939,228.03,227.81,0.03181695]
[1737961410488,191.0,228.02,227.81,4.3918]
[1737961410687,4.3903,227.9,227.81,4.3918]
[1737961410897,35.5264605,227.99,227.73,2.8119]
[1737961411197,5.4861,227.89,227.73,2.8119]
[1737961411398,2.78853283,227.88,227.84,0.03165076]
[1737961411589,2.7557,227.88,227.72,35.5264605]
[1737961411796,2.7557,227.88,227.77,35.5264605]
[1737961412097,5.4861,227.89,227.77,35.5264605]
[1737961412791,0.03113763,227.85,227.82,4.3917]
[1737961412994,0.03113763,227.85,227.81,0.02788338]
[1737961413300,35.5264605,228.09,227.82,35.5264605]
[1737961413496,5.4861,228.05,227.89,35.5264605]
[1737961413900,5.4861,228.05,227.9,8.1721]
[1737961414402,0.03051774,228.0,227.97,4.3889]
[1737961414693,0.03051774,228.0,227.95,0.03160206]
[1737961415298,35.5264605,228.2,227.99,35.5264605]
[1737961415492,2.6428,228.19,227.99,35.5264605]
[1737961416598,0.0300388,228.11,228.07,0.02821776]
[1737961416997,4.3874,228.06,227.95,3.98]
[1737961417198,4.3874,228.06,227.92,39.9162605]
[1737961417394,4.3878,228.03,227.9,7.218]
[1737961417704,35.5264605,228.28,227.97,35.5264605]
[1737961417997,2.8366,228.18,228.02,35.5264605]
[1737961418201,0.03291989,228.15,228.1,0.03227863]
[1737961419802,0.03291989,228.15,228.1,4.41867863]
[1737961420301,0.03291989,228.15,228.11,4.3862]
[1737961420505,0.03291989,228.15,228.1,0.03227863]
[1737961425202,0.03291989,228.15,228.1,21.71928917]
[1737961425706,5.6731,228.25,228.11,2.6639]
[1737961425901,2.6582,228.26,228.11,2.6639]
[1737961426199,191.0,228.38,228.11,2.6639]
[1737961426200,191.0,228.47,228.15,21.68701054]
[1737961426404,5.3618,228.39,228.16,2.7803]
[1737961426800,0.02959871,228.3,228.25,0.02787602]
[1737961427000,0.02959871,228.3,228.16,2.7803]
[1737961427204,0.02959871,228.3,228.25,0.03134684]
[1737961427406,196.3618,228.39,228.25,0.03134684]
[1737961427601,0.02885985,228.3,228.25,0.03134684]
[1737961427905,0.02885985,228.3,228.25,0.03248439]
[1737961428402,4.3832,228.27,228.25,0.03248439]
[1737961428701,2.7111,228.29,228.09,35.22841126]
[1737961429607,4.3838,228.24,228.12,4.3859]
[1737961429808,0.02846486,228.22,228.18,0.03089295]
[1737961434211,0.02846486,228.22,228.05,2.8312]
[1737961434415,4.3865,228.1,228.01,4.388]
[1737961434609,35.22841126,228.18,227.97,35.22841126]
[1737961434810,2.6567,228.17,227.97,35.22841126]
[1737961435012,4.3862,228.11,227.97,35.22841126]
[1737961435408,0.03251934,228.06,228.02,4.42142976]
[1737961435614,0.03251934,228.06,228.02,0.03362976]
[1737961435817,2.6306,228.16,227.97,35.22841126]
[1737961436115,0.02900801,228.06,228.02,0.0308326]
[1737961436512,4.3869,228.08,228.02,0.02821611]
[1737961436713,0.03184668,228.06,228.02,0.02821611]
[1737961436915,2.6306,228.16,227.97,35.22841126]
[1737961437111,0.03301864,228.06,228.02,0.02922703]
[1737961437413,2.6306,228.16,228.01,35.22841126]
[1737961437619,0.02777551,228.06,228.02,0.03099723]
[1737961437816,0.02777551,228.06,228.05,4.3874]
[1737961438019,191.0,228.22,228.01,35.22841126]
[1737961438219,4.3844,228.21,228.06,35.22841126]
[1737961438916,5.6515,228.26,228.01,35.22841126]
[1737961439115,5.6515,228.26,228.06,35.22841126]
[1737961439413,0.03117504,228.16,228.11,0.03171232]
[1737961439614,0.03117504,228.16,228.12,4.386]
[1737961439921,0.03119323,228.13,228.09,0.03009637]
[1737961440319,9.9266,228.25,228.15,4.3853]
[1737961440521,5.5429,228.25,228.09,0.03361813]
[1737961440821,4.3845,228.21,228.15,0.03173028]
[1737961441013,0.02783998,228.22,228.15,0.03173028]
[1737961441617,35.25625124,228.22,228.01,35.22841126]
[1737961441921,35.22841126,228.17,227.97,8.2313]
[1737961442120,2.6569,228.16,227.97,8.2313]
[1737961442919,0.03242981,228.09,228.04,0.03049162]
[1737961443421,0.03242981,228.09,227.93,2.8146]
[1737961443620,0.03242981,228.09,227.9,5.3388]
[1737961443818,35.22841126,228.12,227.9,5.3388]
[1737961444719,0.02903412,228.03,227.99,0.0331844]
[1737961444922,191.0,228.15,227.99,4.3884]
[1737961445225,0.0280979,228.03,227.99,0.03247213]
[1737961445521,35.22841126,228.13,227.9,5.3388]
[1737961445522,4.388,228.02,227.9,5.3388]
[1737961445718,0.03290328,228.03,227.99,0.03098137]
[1737961446023,35.22841126,228.03,227.84,9.8608158]
[1737961446225,193.6592,228.02,227.84,9.8608158]
[1737961446521,4.3895,227.94,227.84,9.8608158]
[1737961446722,35.22841126,227.98,227.84,9.8608158]
[1737961446921,193.7075,227.97,227.84,9.8608158]
[1737961447120,0.02974397,227.93,227.84,9.8608158]
[1737961447522,35.22841126,227.9,227.84,1.16843534]
[1737961447726,2.8563,227.89,227.71,177.93131614]
[1737961448121,4.3917,227.83,227.74,4.3933]
[1737961448318,2.8563,227.89,227.71,177.93131614]
[1737961448624,35.22841126,227.86,227.71,177.93131614]
[1737961448821,0.03319212,227.82,227.71,177.93131614]
[1737961449015,35.22841126,227.78,227.71,177.93131614]
[1737961449322,35.22841126,227.74,227.71,115.75810063]
[1737961449525,35.22841126,227.74,227.71,84.52260063]
[1737961449724,4.3936,227.73,227.71,84.52260063]
[1737961450322,35.25715703,227.74,227.71,84.52260063]
[1737961451319,0.02874577,227.74,227.71,84.52260063]
[1737961452127,0.02874577,227.74,227.72,4.3936]
[1737961452524,4.577e-05,227.74,227.72,4.3936]
[1737961455427,4.577e-05,227.74,227.71,84.52260063]
[1737961455828,35.22845703,227.74,227.71,77.42620063]
[1737961456031,191.0,227.73,227.59,5.3522]
[1737961456331,35.22841126,227.69,227.59,5.3522]
[1737961456630,4.3948,227.67,227.59,5.3522]
[1737961457029,191.0,227.73,227.59,5.3522]
[1737961457229,0.0317969,227.68,227.64,0.0287]
[1737961457934,35.22841126,227.66,227.65,30.4814154]
[1737961458734,0.0317969,227.68,227.65,30.4814154]
[1737961460132,0.0317969,227.68,227.66,4.3949]
[1737961460733,0.00524321,227.68,227.66,4.3949]
[1737961460933,292.0,227.8,227.65,30.4814154]
[1737961461230,39.61951126,227.86,227.66,8.1919]
[1737961461430,191.0,227.88,227.68,35.22841126]
[1737961461728,88.47089884,227.72,227.68,35.22841126]
[1737961461931,14.41229884,227.72,227.68,35.22841126]
[1737961462132,14.44495885,227.72,227.71,4.3939]
[1737961462630,14.44495885,227.72,227.68,0.02799772]
[1737961462825,14.44495885,227.72,227.69,4.3941]
[1737961463030,14.44495885,227.72,227.68,0.02799772]
[1737961463831,10.09445885,227.72,227.68,0.02799772]
[1737961464023,5.74715885,227.72,227.68,0.02799772]
[1737961464928,5.74715885,227.72,227.7,4.3941]
[1737961466634,5.74715885,227.72,227.68,0.02799772]
[1737961466830,5.74715885,227.72,227.71,4.3939]
[1737961467034,5.74715885,227.72,227.68,0.02799772]
[1737961467533,4.3943,227.7,227.55,8.1869]
[1737961467835,5.74715885,227.72,227.55,8.1869]
[1737961467836,5.71449884,227.72,227.55,8.1869]
[1737961468039,8.242,227.71,227.55,2.6722]
[1737961468727,0.02813884,227.65,227.61,0.02861798]
[1737961469032,4.42323884,227.65,227.61,0.02861798]
[1737961469237,0.02813884,227.65,227.61,0.02861798]
[1737961471145,0.02813884,227.65,227.62,4.3957]
[1737961471435,0.02813884,227.65,227.61,0.02861798]
[1737961471639,0.02813884,227.65,227.62,4.3956]
[1737961471936,0.02813884,227.65,227.61,0.02861798]
[1737961472135,4.3953,227.64,227.61,0.02861798]
[1737961472334,0.02813884,227.65,227.49,40.74311126]
[1737961472640,35.22841126,227.63,227.39,2.6202]
[1737961472831,35.22841126,227.58,227.39,2.6202]
[1737961473138,8.4345,227.57,227.39,2.6202]
[1737961473338,4.3977,227.52,227.42,4.3994]
[1737961473540,0.03350717,227.51,227.39,2.6202]
[1737961473941,4.43140717,227.51,227.43,4.3993]
[1737961474235,4.43140717,227.51,227.39,2.6202]
[1737961474236,0.03350717,227.51,227.39,2.6202]
[1737961475036,0.03350717,227.51,227.39,7.0202]
[1737961475336,0.03350717,227.51,227.39,2.6202]
[1737961476140,0.03350717,227.51,227.47,4.3985]
[1737961476533,0.03350717,227.51,227.39,2.6202]
[1737961476939,0.03350717,227.51,227.42,35.22841126]
[1737961477140,0.03350717,227.51,227.49,4.3981]
[1737961477439,191.0,227.62,227.43,5.5857]
[1737961477740,191.0,227.62,227.47,35.22841126]
[1737961478241,8.2734,227.67,227.61,4.3958]
[1737961478442,2.989e-05,227.57,227.52,35.26140247]
[1737961478643,2.798,227.7,227.52,35.22841126]
[1737961479141,2.798,227.7,227.63,4.3954]
[1737961479342,2.798,227.7,227.52,35.22841126]
[1737961479538,5.71449884,227.72,227.52,35.22841126]
[1737961479738,2.486e-05,227.63,227.62,35.22841126]
[1737961480043,5.71449884,227.72,227.61,4.3957]
[1737961480245,5.71449884,227.72,227.58,39.20841126]
[1737961480539,5.71449884,227.72,227.63,35.22841126]
[1737961481338,0.02916345,227.7,227.65,0.02889673]
[1737961481937,0.02916345,227.7,227.66,4.3948]
[1737961483142,0.02916345,227.7,227.65,0.02889673]
[1737961486838,0.02916345,227.7,227.69,4.3943]
[1737961487140,5.78844647,227.84,227.68,35.22841126]
[1737961487533,5.78844647,227.84,227.69,2.7682]
[1737961487935,5.78844647,227.84,227.73,35.22841126]
[1737961488342,5.78844647,227.84,227.82,4.3917]
[1737961489234,17.39730621,227.85,227.81,0.02799482]
[1737961489542,13.04720621,227.85,227.84,4.3914]
[1737961489743,4.5809,228.01,227.81,0.02799482]
[1737961490041,4.3888,227.98,227.85,4.3911]
[1737961490345,4.5809,228.01,227.85,4.3911]
[1737961491147,0.03087668,227.88,227.85,4.3911]
[1737961492345,66.65935006,227.87,227.85,4.3911]
[1737961494541,66.65935006,227.87,227.81,0.02799482]
[1737961497750,71.42795006,227.87,227.69,2.7682]
[1737961497946,71.42795006,227.87,227.68,35.22841126]
[1737961498149,4.3918,227.82,227.68,35.22841126]
[1737961498446,71.42795006,227.87,227.68,35.22841126]
[1737961498749,0.03079647,227.81,227.76,0.03382542]
[1737961499852,4.42299647,227.81,227.76,0.03382542]
[1737961500052,0.03079647,227.81,227.76,0.03382542]
[1737961501546,0.03079647,227.81,227.77,35.22841126]
[1737961501747,66.65935006,227.87,227.8,4.3922]
[1737961501951,66.65935006,227.87,227.82,35.22841126]
[1737961502253,115.76892944,227.94,227.82,35.22841126]
[1737961502454,115.76892944,227.94,227.88,35.22841126]
[1737961502748,4.95431062,227.94,227.93,35.22841126]
[1737961502948,1.062e-05,227.94,227.93,39.61811126]
[1737961503145,0.03318377,227.93,227.89,0.03288047]
[1737961503953,8.377e-05,227.93,227.91,4.39]
[1737961504253,1.062e-05,227.94,227.89,70.48970299]
[1737961504650,1.062e-05,227.94,227.92,4.3898]
[1737961505051,7.5613,228.12,227.95,35.22841126]
[1737961505248,67.1054647,227.97,227.95,39.61751126]
[1737961505454,7.5613,228.12,227.95,35.22841126]
[1737961506753,0.03212112,228.06,228.01,0.03151097]
[1737961507957,0.03212112,228.06,228.02,4.3879]
[1737961508658,0.03212112,228.06,228.04,4.3875]
[1737961508958,0.03212112,228.06,228.01,0.03151097]
[1737961509154,0.03212112,228.06,228.03,4.3877]
[1737961509554,35.22841126,228.2,228.01,0.03151097]
[1737961509756,35.22841126,228.2,228.0,35.22841126]
[1737961509957,7.322,228.25,228.05,35.22841126]
[1737961510155,7.322,228.25,228.1,35.22841126]
[1737961510352,7.322,228.25,228.1,39.18841126]
[1737961510659,0.02982376,228.18,228.17,4.385]
[1737961511256,7.322,228.35,228.15,35.22841126]
[1737961511456,4.3826,228.3,228.15,35.22841126]
[1737961511758,7.322,228.35,228.15,35.22841126]
[1737961512261,7.322,228.35,228.13,0.03329726]
[1737961512460,0.028418,228.2,228.13,0.03329726]
[1737961512757,35.22841126,228.31,228.1,3.96]
[1737961512957,0.02814322,228.19,228.14,0.03342676]
[1737961513154,35.22841126,228.21,228.02,35.22841126]
[1737961513360,35.22841126,228.16,227.96,35.22841126]
[1737961513656,483.0,228.24,227.82,82.08]
[1737961513657,4.3868,228.08,227.95,4.3891]
[1737961513861,35.22841126,228.19,227.98,35.22841126]
[1737961514061,30.12962268,228.24,227.98,35.22841126]
[1737961514253,30.12962268,228.24,228.03,35.22841126]
[1737961514451,0.02864729,228.13,228.09,0.0295299]
[1737961514853,4.3847,228.19,228.07,4.387]
[1737961515158,0.03072963,228.13,228.09,0.02920185]
[1737961516863,0.03072963,228.13,228.11,4.3861]
[1737961517057,0.00932963,228.13,228.11,4.3861]
[1737961517362,2.7046,228.25,228.09,0.02920185]
[1737961517661,2.7046,228.25,228.16,4.3852]
[1737961518361,0.03362147,228.23,228.18,0.02954127]
[1737961519062,0.03362147,228.23,228.18,4.41434127]
[1737961519559,0.03362147,228.23,228.18,0.02954127]
[1737961519760,0.03362147,228.23,228.07,35.22841126]
[1737961519960,0.03362147,228.23,228.02,35.22841126]
[1737961520261,37.93301126,228.25,228.02,35.22841126]
[1737961521061,0.03171661,228.16,228.11,0.03035152]
[1737961521462,0.03171661,228.16,228.02,35.22841126]
[1737961521659,0.03171661,228.16,228.11,0.03178369]
[1737961521865,2.7046,228.25,228.11,0.03178369]
[1737961522064,8.998e-05,228.16,228.11,0.03178369]
[1737961522268,8.998e-05,228.16,228.15,4.3854]
[1737961522565,7.7083,228.33,228.12,35.22841126]
[1737961522768,7.7083,228.33,228.26,4.3833]
[1737961523359,7.7083,228.33,228.24,4.3835]
[1737961523560,7.7083,228.33,228.19,35.22841126]
[1737961523860,0.02963028,228.31,228.26,0.0318823]
[1737961525368,0.02963028,228.31,228.29,4.3827]
[1737961525967,0.02963028,228.31,228.26,0.0318823]
[1737961526565,3.028e-05,228.31,228.29,4.3827]
[1737961527267,3.028e-05,228.31,228.3,35.22841126]
[1737961527470,3.028e-05,228.31,228.29,4.3827]
[1737961528670,3.028e-05,228.31,228.28,4.3829]
[1737961528872,3.028e-05,228.31,228.26,35.26029356]
[1737961529167,3.028e-05,228.31,228.26,0.0318823]
[1737961530665,3.028e-05,228.31,228.3,4.3826]
[1737961531470,2.8707,228.44,228.3,4.3826]
[1737961531673,2.8707,228.44,228.31,3.96]
[1737961532874,0.03232493,228.4,228.39,4.3808]
[1737961535274,0.03232493,228.4,228.38,4.381]
[1737961535779,0.03232493,228.4,228.35,4.41396729]
[1737961535979,0.03232493,228.4,228.35,0.03246729]
[1737961536580,0.03232493,228.4,228.23,3.96]
[1737961536777,45.24631126,228.43,228.23,3.96]
[1737961537211,35.22841126,228.38,228.16,81.98]
[1737961537398,35.22841126,228.34,228.16,81.98]
[1737961537799,4.3836,228.25,228.23,0.03248779]
[1737961537997,2.6522,228.24,228.17,4.385]
[1737961538303,2.6522,228.24,228.07,35.22841126]
[1737961538498,4.3846,228.2,228.07,4.3869]
[1737961538696,4.4995,228.23,228.05,3.96]
[1737961539094,4.3842,228.22,228.1,4.3864]
[1737961539290,0.03364447,228.16,228.12,0.0291038]
[1737961540701,0.03364447,228.16,228.02,35.22841126]
[1737961541056,35.22841126,228.2,227.98,81.98]
[1737961541219,4.4995,228.23,227.98,81.98]
[1737961541220,4.3863,228.11,227.98,81.98]
[1737961541418,2.7192,228.1,227.98,81.98]
[1737961541907,4.4995,228.23,228.02,35.25874025]
[1737961542108,4.028e-05,228.06,228.02,35.25874025]
[1737961542305,4.3843,228.21,228.02,35.22841126]
[1737961542908,2.6082,228.22,228.02,35.22841126]
[1737961543527,0.02986315,228.14,228.1,4.41984159]
[1737961543719,0.02986315,228.14,228.1,0.03344159]
[1737961545903,0.02986315,228.14,228.12,4.3859]
[1737961546511,6.315e-05,228.14,228.12,4.3859]
[1737961547611,6.315e-05,228.14,228.1,0.03344159]
[1737961549408,6.315e-05,228.14,228.13,4.3858]
[1737961550006,6.315e-05,228.14,228.1,0.03344159]
[1737961551282,6.315e-05,228.14,227.99,3.96]
[1737961551478,4.3862,228.11,228.0,4.3882]
[1737961551685,35.22841126,228.18,227.98,81.98]
[1737961552380,4.3858,228.13,227.98,81.98]
[1737961552586,0.03017608,228.1,228.06,0.028148]
[1737961555484,0.03017608,228.1,228.09,4.3866]
[1737961556589,2.6063,228.21,228.06,0.028148]
[1737961556890,35.22841126,228.38,228.17,35.22841126]
[1737961557092,4.8826,228.32,228.17,35.22841126]
[1737961557788,0.02792849,228.27,228.22,0.03320747]
[1737961559288,0.02792849,228.27,228.24,4.3837]
[1737961559491,0.02792849,228.27,228.22,0.03320747]
[1737961560591,0.02792849,228.27,228.13,3.96]
[1737961560790,4.8826,228.32,228.13,3.96]
[1737961560990,4.8826,228.32,228.13,39.18841126]
[1737961561495,4.8826,228.32,228.2,4.3844]
[1737961561693,4.8826,228.32,228.18,35.22841126]
[1737961561890,0.0311255,228.28,228.24,0.03258222]
[1737961562099,0.0311255,228.28,228.26,4.3833]
[1737961562395,0.0311255,228.28,228.24,0.03258222]
[1737961562594,0.0311255,228.28,228.26,4.3833]
[1737961562796,0.0311255,228.28,228.24,0.03258222]
[1737961563095,0.0311255,228.28,228.27,4.3831]
[1737961563598,4.6341,228.45,228.33,4.3818]
[1737961563895,2.6948,228.44,228.33,4.3818]
[1737961564396,7.0747,228.44,228.29,35.22841126]
[1737961564591,2.6948,228.44,228.34,0.033248]
[1737961564788,0.03131028,228.39,228.34,0.033248]
[1737961565189,0.03131028,228.39,228.26,3.64]
[1737961565592,4.3817,228.35,228.26,3.64]
[1737961566098,2.7168,228.38,228.26,3.64]
[1737961566491,0.02954211,228.34,228.3,0.03225162]
[1737961566693,0.02954211,228.34,228.32,4.3821]
[1737961566894,35.22841126,228.54,228.3,0.03225162]
[1737961567090,5.589,228.53,228.33,35.22841126]
[1737961567398,10.4557,228.53,228.33,35.22841126]
[1737961567897,10.4557,228.53,228.31,4.02]
[1737961568097,0.02909119,228.45,228.41,0.03254611]
[1737961568294,4.3801,228.43,228.41,0.03254611]
[1737961568694,0.02909119,228.45,228.41,0.03254611]
[1737961570494,0.02909119,228.45,228.28,35.22841126]
[1737961570893,10.4557,228.53,228.26,3.64]
[1737961571098,35.22841126,228.43,228.26,3.64]
[1737961571400,10.4557,228.53,228.12,35.22841126]
[1737961571401,35.22841126,228.35,228.12,35.22841126]
[1737961571602,4.6433,228.34,228.12,35.22841126]
[1737961571900,0.03310782,228.26,228.21,0.03266844]
[1737961572298,0.03310782,228.26,228.08,35.22841126]
[1737961572499,0.03310782,228.26,228.03,35.22841126]
[1737961572700,35.22841126,228.22,228.0,4.02]
[1737961573004,4.6814,228.21,228.0,4.02]
[1737961573505,0.0308537,228.13,228.08,0.03313655]
[1737961573805,0.0308537,228.13,228.0,4.02]
[1737961573998,0.0308537,228.13,228.03,4.3877]
[1737961574505,0.0308537,228.13,228.05,4.3874]
[1737961574696,0.0308537,228.13,228.0,4.02]
[1737961574998,0.0308537,228.13,228.07,0.03050388]
[1737961577704,0.0308537,228.13,228.07,4.41740388]
[1737961577895,0.0308537,228.13,228.07,0.03050388]
[1737961578602,0.0308537,228.13,228.08,4.3867]
[1737961578802,0.0308537,228.13,228.07,0.03050388]
[1737961578997,5.37e-05,228.13,228.1,35.22841126]
[1737961579201,5.37e-05,228.13,228.11,4.3862]
[1737961579703,5.37e-05,228.13,228.07,0.03050388]
[1737961580703,5.37e-05,228.13,228.11,4.3862]
[1737961581198,7.6072,228.3,228.23,4.3837]
[1737961582001,7.6072,228.3,228.16,35.22841126]
[1737961582405,0.028,228.25,228.23,4.3839]
[1737961582605,0.028,228.25,228.21,0.02967216]
[1737961583000,0.028,228.25,228.23,4.3838]
[1737961583606,0.028,228.25,228.21,0.02967216]
[1737961586303,0.028,228.25,228.11,2.6352]
[1737961586500,4.3835,228.25,228.14,4.3856]
[1737961586806,35.22841126,228.26,228.03,4.5928]
[1737961587101,7.1479,228.24,228.07,4.3868]
[1737961587705,0.03146671,228.18,228.13,0.03131455]
[1737961587901,4.41646671,228.18,228.13,0.03131455]
[1737961588105,0.03146671,228.18,228.13,0.03131455]
[1737961588301,35.22841126,228.36,228.13,0.03131455]
[1737961588502,7.376,228.33,228.16,35.22841126]
[1737961589103,7.376,228.33,228.21,35.22841126]
[1737961589104,4.749,228.33,228.21,35.22841126]
[1737961589307,2.627,228.45,228.21,35.22841126]
[1737961589509,7.376,228.45,228.21,35.22841126]
[1737961589817,0.02779211,228.29,228.25,0.02820459]